bitfinex-derivatives/quotes_SOLF0:USTF0_20250626
["timestamp","ask_amount","ask_price","bid_price","bid_amount"]
[1750934227143,36.68888274,143.79,143.78,6.952]
[1750934227339,34.46,143.79,143.78,6.952]
[1750934229049,36.68888274,143.79,143.78,6.952]
[1750934230043,34.46,143.79,143.78,6.952]
[1750934230244,36.68888274,143.79,143.78,6.952]
[1750934230636,2.22888274,143.79,143.78,6.952]
[1750934230837,36.68888274,143.79,143.78,6.952]
[1750934232337,1.21039268,143.85,143.8,6.9509]
[1750934232533,2.22888274,143.83,143.8,6.49881393]
[1750934232752,43.97647957,143.82,143.8,6.49881393]
[1750934233045,34.46,143.82,143.8,6.49881393]
[1750934233546,34.46,143.82,143.81,6.9501]
[1750934233733,43.95226458,143.82,143.81,6.9501]
[1750934234136,43.95196134,143.82,143.81,6.9501]
[1750934234334,39.45102996,143.82,143.81,6.9501]
[1750934234734,34.44,143.82,143.81,6.9501]
[1750934235748,34.44,143.82,143.8,13.44961393]
[1750934235749,43.61898274,143.82,143.8,13.44961393]
[1750934235937,2.22888274,143.81,143.79,6.49881393]
[1750934236142,2.22888274,143.8,143.78,6.49881393]
[1750934236342,6.9524,143.77,143.76,6.49881393]
[1750934236537,36.64888274,143.77,143.75,6.49881393]
[1750934236743,2.22888274,143.76,143.75,6.49881393]
[1750934236944,2.22888274,143.76,143.74,6.49881393]
[1750934237144,2.22888274,143.75,143.74,6.49881393]
[1750934237545,2.22888274,143.75,143.74,13.45241393]
[1750934238850,2.22888274,143.76,143.74,13.45241393]
[1750934239251,2.22888274,143.76,143.75,6.49881393]
[1750934239957,2.22888274,143.76,143.75,13.45221393]
[1750934241754,2.22888274,143.76,143.75,6.49881393]
[1750934242553,9.18178274,143.76,143.75,6.49881393]
[1750934242952,2.22888274,143.76,143.74,6.49881393]
[1750934243250,2.22888274,143.75,143.74,6.49881393]
[1750934243444,9.18228274,143.75,143.74,6.49881393]
[1750934243653,11.66229415,143.75,143.73,6.49881393]
[1750934243956,2.22888274,143.74,143.72,6.49881393]
[1750934244164,36.66888274,143.73,143.72,6.49881393]
[1750934244461,36.66888274,143.73,143.71,6.49881393]
[1750934244858,36.66888274,143.73,143.72,6.9549]
[1750934248361,36.66888274,143.73,143.71,6.9551]
[1750934250358,2.22888274,143.72,143.7,6.49881393]
[1750934250562,2.22888274,143.71,143.69,6.49881393]
[1750934250855,2.22888274,143.7,143.69,6.49881393]
[1750934252258,6.9556,143.71,143.69,6.49881393]
[1750934252562,34.44,143.73,143.69,6.49881393]
[1750934252865,3.48557579,143.73,143.7,6.9556]
[1750934253061,34.44,143.72,143.7,6.9556]
[1750934253760,6.9553,143.71,143.69,6.956]
[1750934253955,6.9553,143.71,143.68,6.49881393]
[1750934253956,10.44087579,143.71,143.68,6.49881393]
[1750934255064,3.48557579,143.71,143.69,6.956]
[1750934257265,34.44,143.7,143.64,10.80107579]
[1750934257766,34.44,143.7,143.69,6.9563]
[1750934260576,6.9551,143.72,143.69,6.9563]
[1750934260778,34.44,143.7,143.69,6.9563]
[1750934262872,6.9551,143.72,143.7,6.9555]
[1750934263178,34.44,143.71,143.7,6.9555]
[1750934263675,3.48557579,143.72,143.71,6.9553]
[1750934263877,37.90557579,143.72,143.71,6.9553]
[1750934264778,44.86047579,143.72,143.7,6.9555]
[1750934269178,34.42,143.71,143.7,6.9555]
[1750934270073,6.9549,143.72,143.7,6.9555]
[1750934270278,34.42,143.71,143.7,6.9555]
[1750934270480,6.9549,143.72,143.7,6.9555]
[1750934270681,34.42,143.71,143.7,6.9555]
[1750934272385,36.65043576,143.71,143.7,6.9555]
[1750934273985,43.60573576,143.71,143.69,6.956]
[1750934274188,2.23043576,143.7,143.69,6.956]
[1750934274878,41.3753,143.71,143.69,6.956]
[1750934275179,43.60573576,143.71,143.69,6.956]
[1750934277489,36.65043576,143.71,143.7,6.9558]
[1750934277881,34.42,143.71,143.7,6.9558]
[1750934280388,34.42,143.71,143.7,13.43224362]
[1750934281191,2.23043576,143.72,143.71,6.9553]
[1750934281392,36.65043576,143.72,143.71,6.9553]
[1750934284290,36.65043576,143.72,143.71,13.43174362]
[1750934286592,6.9546,143.73,143.71,13.43174362]
[1750934286789,34.42,143.73,143.72,6.9549]
[1750934287191,34.42,143.73,143.72,13.43134362]
[1750934287898,2.23043576,143.74,143.73,6.9544]
[1750934288198,41.70984757,143.74,143.73,6.9544]
[1750934288398,11.69659113,143.74,143.73,6.9544]
[1750934288593,46.11659113,143.74,143.73,6.9544]
[1750934291202,46.11659113,143.74,143.73,13.43084362]
[1750934292000,41.05717932,143.74,143.73,13.43084362]
[1750934292203,36.65043576,143.74,143.73,13.43084362]
[1750934293292,2.23043576,143.75,143.74,6.9539]
[1750934293497,34.4,143.76,143.73,8.63525816]
[1750934293701,36.63043576,143.76,143.75,6.50929034]
[1750934293997,34.4,143.76,143.75,6.50929034]
[1750934294197,34.4,143.76,143.75,13.46229034]
[1750934294600,221.74720415,143.77,143.75,6.50929034]
[1750934294902,221.74720415,143.77,143.76,6.50929034]
[1750934295403,221.74720415,143.77,143.75,6.50929034]
[1750934295806,223.97763991,143.77,143.74,6.50929034]
[1750934296304,230.93033991,143.77,143.75,6.9532]
[1750934297707,228.69990415,143.77,143.75,6.9532]
[1750934297907,230.93033991,143.77,143.75,13.46249034]
[1750934298305,223.97763991,143.77,143.75,13.46249034]
[1750934299103,187.34720415,143.77,143.76,6.9529]
[1750934299307,221.74720415,143.77,143.75,6.50929034]
[1750934299502,34.4,143.77,143.75,6.50929034]
[1750934300111,36.63043576,143.77,143.75,13.46229034]
[1750934300503,2.23043576,143.77,143.76,6.9529]
[1750934300703,36.63043576,143.77,143.76,6.9529]
[1750934302917,2.23043576,143.77,143.76,6.9529]
[1750934303102,36.63043576,143.77,143.76,6.9529]
[1750934303309,2.23043576,143.77,143.76,6.9529]
[1750934304125,36.63043576,143.78,143.76,6.9529]
[1750934305108,43.58243576,143.78,143.76,6.9529]
[1750934305509,2.23043576,143.77,143.74,6.50929034]
[1750934305710,2.23043576,143.75,143.72,6.50929034]
[1750934305917,2.23043576,143.73,143.71,6.50929034]
[1750934306110,2.23043576,143.72,143.71,13.46459034]
[1750934306718,41.3541,143.74,143.71,13.46459034]
[1750934306915,2.23043576,143.72,143.71,13.46459034]
[1750934308313,44.83839249,143.74,143.71,13.46459034]
[1750934309517,37.88429249,143.74,143.7,6.50929034]
[1750934310523,6.9552,143.72,143.7,6.50929034]
[1750934311618,6.9552,143.72,143.7,13.46489034]
[1750934312017,6.9546,143.73,143.7,13.46489034]
[1750934312815,6.9546,143.73,143.71,6.9553]
[1750934314321,6.9546,143.73,143.7,13.46489034]
[1750934314913,34.4,143.72,143.7,13.46489034]
[1750934315114,34.4,143.72,143.71,6.9553]
[1750934318222,34.4,143.72,143.7,13.46489034]
[1750934319022,34.4,143.72,143.71,6.9554]
[1750934320023,6.9545,143.73,143.71,6.9554]
[1750934320223,34.4,143.74,143.72,6.50929034]
[1750934320426,34.4,143.74,143.73,6.50929034]
[1750934321628,34.4,143.74,143.73,13.46369034]
[1750934322021,6.9529,143.76,143.73,6.50929034]
[1750934322226,34.4,143.75,143.73,6.50929034]
[1750934322428,6.9529,143.76,143.73,6.50929034]
[1750934322629,34.4,143.75,143.73,6.50929034]
[1750934322820,34.4,143.75,143.74,6.9538]
[1750934324223,41.3534,143.75,143.73,13.46339034]
[1750934325432,6.9539,143.74,143.73,6.50929034]
[1750934325824,6.9539,143.74,143.72,6.9547]
[1750934327123,3.48429249,143.73,143.71,6.50929034]
[1750934327436,3.48429249,143.73,143.7,13.46489034]
[1750934328328,6.9551,143.72,143.7,13.46489034]
[1750934329328,41.3551,143.72,143.7,13.46489034]
[1750934331533,41.3551,143.72,143.7,6.50929034]
[1750934332824,6.9554,143.71,143.7,6.50929034]
[1750934333836,41.3551,143.72,143.7,6.50929034]
[1750934334137,41.3551,143.72,143.7,13.46499034]
[1750934334732,6.9551,143.72,143.7,13.46499034]
[1750934334933,34.4,143.71,143.7,13.46499034]
[1750934336241,36.63056177,143.71,143.7,13.46499034]
[1750934336744,36.63056177,143.71,143.69,6.50929034]
[1750934336944,2.23056177,143.7,143.69,6.50929034]
[1750934337140,36.63056177,143.7,143.69,6.50929034]
[1750934338235,36.63056177,143.7,143.68,13.46589034]
[1750934338643,43.58636177,143.7,143.68,13.46589034]
[1750934339240,9.18686177,143.69,143.68,6.50929034]
[1750934339439,2.23056177,143.69,143.67,6.50929034]
[1750934339835,2.23056177,143.69,143.68,6.9568]
[1750934340236,41.356,143.7,143.68,6.9568]
[1750934343437,41.356,143.7,143.68,13.46609034]
[1750934344239,6.9563,143.69,143.68,6.50929034]
[1750934344439,34.4,143.7,143.68,6.50929034]
[1750934345143,34.4,143.7,143.69,6.9561]
[1750934348947,34.4,143.71,143.68,8.63525816]
[1750934349148,34.4,143.71,143.69,6.49943437]
[1750934349449,34.4,143.71,143.7,6.49943437]
[1750934350047,10.44035898,143.73,143.7,6.49943437]
[1750934350242,34.4,143.72,143.7,6.49943437]
[1750934350643,34.4,143.72,143.71,6.955]
[1750934351348,34.4,143.72,143.7,13.45483437]
[1750934352243,41.3552,143.72,143.7,6.49943437]
[1750934353851,6.9554,143.71,143.7,6.49943437]
[1750934356254,10.44115898,143.71,143.7,6.49943437]
[1750934356451,10.44115898,143.71,143.68,15.59175816]
[1750934356452,6.9558,143.7,143.69,6.49943437]
[1750934358655,6.9558,143.7,143.67,6.957]
[1750934359652,6.9558,143.7,143.68,6.9567]
[1750934362350,9.18652136,143.7,143.68,6.9567]
[1750934362751,2.23072136,143.7,143.69,6.9563]
[1750934364651,6.9551,143.72,143.7,6.9558]
[1750934364953,36.61072136,143.72,143.68,2.23072136]
[1750934365150,2.23072136,143.72,143.71,6.9553]
[1750934365353,36.61072136,143.72,143.71,6.9553]
[1750934366052,36.61072136,143.72,143.7,6.9556]
[1750934366253,2.23072136,143.71,143.7,6.9556]
[1750934366760,2.23072136,143.71,143.69,6.956]
[1750934366961,2.23072136,143.7,143.69,6.956]
[1750934367955,2.23072136,143.7,143.68,6.9565]
[1750934368158,6.9557,143.71,143.66,4.69232136]
[1750934368358,2.23072136,143.69,143.66,4.69232136]
[1750934368563,2.23072136,143.69,143.67,6.9569]
[1750934368953,2.23072136,143.69,143.66,4.69232136]
[1750934369265,9.18672136,143.7,143.66,4.69232136]
[1750934369462,2.23072136,143.69,143.66,4.69232136]
[1750934369764,9.18672136,143.7,143.68,6.9566]
[1750934370567,2.23072136,143.7,143.68,6.9566]
[1750934371161,6.9556,143.71,143.69,6.9562]
[1750934371461,2.23072136,143.7,143.69,6.9562]
[1750934371864,6.9556,143.71,143.69,6.9562]
[1750934372059,2.23072136,143.7,143.69,6.9562]
[1750934374271,600.86,143.77,143.68,2.23006414]
[1750934374566,2.23006414,143.73,143.68,2.23006414]
[1750934374971,2.23006414,143.73,143.71,6.955]
[1750934375266,2.23006414,143.73,143.68,2.23006414]
[1750934375970,2.23006414,143.73,143.68,8.7298056]
[1750934376193,2.23006414,143.73,143.71,6.49974146]
[1750934376473,10.43840569,143.74,143.72,6.9549]
[1750934377173,5.00334142,143.73,143.72,6.9549]
[1750934377374,10.43840569,143.74,143.72,6.9549]
[1750934378365,5.00357001,143.73,143.72,6.9549]
[1750934379178,11.95807001,143.73,143.71,13.45484146]
[1750934379369,3.48432303,143.74,143.71,13.45484146]
[1750934379570,5.00363974,143.73,143.71,13.45484146]
[1750934379770,3.48432303,143.74,143.71,13.45484146]
[1750934380068,5.00363749,143.73,143.71,13.45484146]
[1750934380269,10.43852303,143.74,143.71,13.45484146]
[1750934380471,34.38,143.75,143.73,6.49974146]
[1750934380676,8.50004386,143.74,143.72,6.49974146]
[1750934380877,8.50004386,143.74,143.66,54.24132303]
[1750934380878,3.48432303,143.74,143.71,6.49974146]
[1750934381077,3.48432303,143.72,143.71,6.49974146]
[1750934381267,12.94079394,143.72,143.7,6.49974146]
[1750934381474,41.3353,143.71,143.7,6.49974146]
[1750934381773,43.8380278,143.71,143.66,8.66632195]
[1750934381970,3.48432303,143.68,143.66,15.62402195]
[1750934382286,34.38,143.67,143.65,8.66632195]
[1750934382572,3.48432303,143.66,143.63,8.66632195]
[1750934382964,3.48432303,143.66,143.62,8.66632195]
[1750934383371,6.9586,143.65,143.62,15.62572195]
[1750934383971,3.48432303,143.64,143.61,8.66632195]
[1750934384277,34.38,143.63,143.6,8.66632195]
[1750934384577,34.38,143.63,143.61,6.9599]
[1750934384779,34.38,143.63,143.59,13.38552195]
[1750934385274,41.34,143.62,143.59,2.2706]
[1750934386167,6.96,143.62,143.59,2.2706]
[1750934386371,41.44,143.62,143.59,2.2706]
[1750934386572,41.44,143.62,143.59,9.2316]
[1750934387084,6.9603,143.61,143.58,6.9615]
[1750934387380,3.48432303,143.61,143.56,10.92642195]
[1750934387583,3.48432303,143.61,143.58,6.9613]
[1750934387876,34.48,143.62,143.56,10.92642195]
[1750934388081,34.48,143.62,143.57,8.66632195]
[1750934388270,34.48,143.62,143.6,6.9603]
[1750934388887,34.48,143.65,143.57,3.48432303]
[1750934389181,34.48,143.65,143.58,8.66632195]
[1750934389380,34.48,143.65,143.62,6.9596]
[1750934389877,6.9588,143.64,143.61,6.96]
[1750934390375,6.9595,143.63,143.59,6.9607]
[1750934390582,3.48432303,143.64,143.57,8.66632195]
[1750934391264,34.48,143.63,143.57,8.66632195]
[1750934391473,3.48432303,143.64,143.57,8.66632195]
[1750934391681,3.48432303,143.65,143.57,12.15064498]
[1750934391977,34.48,143.63,143.57,12.15064498]
[1750934392179,34.48,143.63,143.6,6.9602]
[1750934392979,37.96432303,143.63,143.59,6.961]
[1750934394082,37.96432303,143.63,143.58,6.9615]
[1750934394281,3.48432303,143.61,143.56,2.2601]
[1750934394971,6.9609,143.6,143.57,6.9618]
[1750934395772,3.48432303,143.61,143.56,2.2601]
[1750934396269,6.9607,143.6,143.57,6.9619]
[1750934397082,37.96432303,143.59,143.55,2.3806]
[1750934397279,3.48432303,143.57,143.53,2.295]
[1750934398287,3.48432303,143.57,143.55,6.9628]
[1750934398992,37.96432303,143.57,143.56,6.9626]
[1750934399286,37.96432303,143.57,143.53,2.295]
[1750934399875,3.48432303,143.57,143.53,2.295]
[1750934400080,37.96432303,143.57,143.53,2.295]
[1750934400276,34.48,143.57,143.55,6.9626]
[1750934400481,34.48,143.57,143.53,2.295]
[1750934400882,34.48,143.57,143.56,6.9626]
[1750934401082,34.48,143.57,143.53,2.295]
[1750934401284,44.92672303,143.57,143.54,6.9635]
[1750934401484,37.96432303,143.57,143.53,2.295]
[1750934401782,37.96432303,143.57,143.55,6.9627]
[1750934401981,37.98432303,143.57,143.55,6.9627]
[1750934402376,44.94652303,143.57,143.54,6.9634]
[1750934403576,6.9629,143.56,143.53,6.9638]
[1750934403781,6.9629,143.56,143.52,2.413]
[1750934403982,41.4629,143.56,143.52,2.413]
[1750934404290,41.4629,143.56,143.54,6.9633]
[1750934404494,34.5,143.56,143.54,6.9633]
[1750934404795,34.5,143.56,143.55,6.9631]
[1750934405395,6.9623,143.57,143.55,6.9631]
[1750934405587,34.5,143.56,143.55,6.9631]
[1750934405797,6.9618,143.58,143.56,6.9624]
[1750934405992,34.5,143.57,143.52,2.413]
[1750934406497,34.5,143.57,143.55,6.9627]
[1750934408294,34.5,143.57,143.56,6.9626]
[1750934408495,10.44612303,143.58,143.56,6.9626]
[1750934408794,10.44612303,143.58,143.49,10.96142195]
[1750934408795,34.5,143.57,143.49,8.66632195]
[1750934409097,3.48432303,143.51,143.44,8.32712303]
[1750934409297,44.94962303,143.51,143.46,6.9672]
[1750934409489,37.98432303,143.51,143.46,6.9672]
[1750934409692,37.98432303,143.51,143.44,8.32712303]
[1750934409996,37.98432303,143.51,143.46,6.9672]
[1750934410591,6.9658,143.5,143.46,6.9672]
[1750934411096,37.98432303,143.51,143.46,6.9672]
[1750934411288,6.9663,143.49,143.46,6.9672]
[1750934411688,6.9663,143.49,143.44,4.8428]
[1750934412393,6.9658,143.5,143.44,4.8428]
[1750934412594,3.48432303,143.5,143.44,4.8428]
[1750934412798,34.5,143.53,143.45,3.48432303]
[1750934413000,10.44832303,143.54,143.47,3.48432303]
[1750934413301,10.44832303,143.54,143.48,2.392]
[1750934413499,10.44832303,143.54,143.51,6.965]
[1750934413693,606.1373,143.57,143.49,3.48432303]
[1750934413694,37.98432303,143.56,143.49,3.48432303]
[1750934414089,37.98432303,143.56,143.5,4.6482]
[1750934414490,6.9634,143.55,143.53,6.964]
[1750934414993,6.9634,143.55,143.52,6.9643]
[1750934417588,6.9634,143.55,143.53,6.9641]
[1750934418096,44.94712303,143.56,143.53,6.9641]
[1750934419293,10.44712303,143.56,143.53,6.9641]
[1750934419992,10.44712303,143.56,143.5,4.6482]
[1750934419993,3.48432303,143.57,143.5,4.6482]
[1750934420392,3.48432303,143.57,143.55,6.9628]
[1750934420588,173.55261433,143.62,143.51,3.48432303]
[1750934420803,3.48432303,143.59,143.52,34.98]
[1750934421192,3.48432303,143.59,143.57,6.9619]
[1750934422403,10.44472303,143.61,143.53,3.48432303]
[1750934422616,45.42472303,143.61,143.53,3.48432303]
[1750934422904,38.46432303,143.61,143.54,2.4123]
[1750934423298,6.9607,143.6,143.58,6.9616]
[1750934424092,45.42472303,143.61,143.58,6.9616]
[1750934424602,6.9607,143.6,143.58,6.9616]
[1750934425206,10.44472303,143.61,143.58,6.9616]
[1750934427001,6.9604,143.61,143.58,6.9616]
[1750934427203,10.44472303,143.61,143.58,6.9616]
[1750934428796,3.48432303,143.61,143.58,6.9616]
[1750934429104,38.46432303,143.61,143.54,2.4123]
[1750934429306,34.98,143.6,143.54,2.4123]
[1750934429503,41.941,143.6,143.57,6.9619]
[1750934430202,6.961,143.6,143.57,6.9619]
[1750934430503,41.941,143.6,143.57,6.9619]
[1750934436510,6.961,143.6,143.57,6.9619]
[1750934436701,41.941,143.6,143.57,6.9619]
[1750934437509,45.43188242,143.6,143.57,6.9619]
[1750934437711,6.9612,143.59,143.57,6.9619]
[1750934438502,45.43178242,143.6,143.57,6.9619]
[1750934438704,45.43178242,143.6,143.58,6.9616]
[1750934439103,41.9409,143.6,143.58,6.9616]
[1750934439303,6.9612,143.59,143.57,6.9619]
[1750934439507,3.49066731,143.61,143.54,11.07862195]
[1750934439809,41.941,143.6,143.57,6.9617]
[1750934440513,41.941,143.6,143.58,6.9615]
[1750934440812,6.961,143.6,143.58,6.9615]
[1750934445312,6.961,143.6,143.55,4.774]
[1750934445917,6.961,143.6,143.58,6.9614]
[1750934446217,6.9614,143.59,143.55,4.774]
[1750934446420,38.4706618,143.61,143.58,6.9614]
[1750934446618,38.47086229,143.61,143.58,6.9614]
[1750934447223,6.961,143.6,143.58,6.9614]
[1750934447521,38.47086229,143.61,143.57,6.9619]
[1750934447822,6.9612,143.59,143.57,6.9619]
[1750934449022,6.9617,143.58,143.56,6.9624]
[1750934449316,3.49086229,143.59,143.52,34.98]
[1750934449516,6.9622,143.57,143.54,6.9631]
[1750934450318,6.9622,143.57,143.55,6.9631]
[1750934453123,3.49215747,143.58,143.53,6.964]
[1750934453427,3.49215747,143.56,143.53,6.964]
[1750934453727,45.17515747,143.56,143.54,6.9634]
[1750934454428,38.21215747,143.56,143.54,6.9634]
[1750934454624,38.21215747,143.56,143.55,6.9631]
[1750934455427,38.21215747,143.56,143.54,6.9633]
[1750934455927,45.17505747,143.56,143.54,6.9633]
[1750934457328,34.72,143.56,143.49,34.72]
[1750934457525,34.72,143.56,143.49,38.21215747]
[1750934457926,34.72,143.56,143.55,6.9631]
[1750934458229,38.23215747,143.59,143.51,3.49215747]
[1750934458420,38.23215747,143.59,143.52,7.1472]
[1750934458620,6.9618,143.58,143.56,6.9623]
[1750934459127,10.45365747,143.59,143.57,6.9622]
[1750934459334,10.45365747,143.59,143.52,7.1472]
[1750934459335,3.49215747,143.59,143.52,7.1472]
[1750934459627,38.23215747,143.59,143.52,7.1472]
[1750934460129,3.49215747,143.59,143.52,7.1472]
[1750934460332,38.23215747,143.59,143.52,7.1472]
[1750934460537,45.19335747,143.59,143.57,6.9619]
[1750934461019,6.9617,143.58,143.56,6.9624]
[1750934461925,41.7017,143.58,143.56,6.9624]
[1750934463225,6.9622,143.57,143.55,6.9629]
[1750934463431,3.49215747,143.57,143.49,34.72]
[1750934463630,10.45545747,143.55,143.49,34.72]
[1750934464224,3.49215747,143.55,143.53,6.9638]
[1750934464525,3.49215747,143.55,143.46,45.36195747]
[1750934464526,34.74,143.54,143.46,45.36195747]
[1750934464722,6.9648,143.52,143.5,6.9655]
[1750934465530,10.45635747,143.53,143.5,6.9655]
[1750934465830,38.23215747,143.53,143.46,45.36195747]
[1750934466233,45.19655747,143.53,143.5,6.9653]
[1750934466726,6.9646,143.52,143.5,6.9653]
[1750934467426,45.19645747,143.53,143.5,6.9653]
[1750934467733,45.19645747,143.53,143.51,6.9651]
[1750934468137,38.23215747,143.53,143.46,45.36195747]
[1750934468633,38.23215747,143.53,143.52,6.9646]
[1750934468833,38.23215747,143.53,143.46,45.36195747]
[1750934469030,3.49215747,143.53,143.52,6.9646]
[1750934469341,3.49215747,143.55,143.48,3.49215747]
[1750934470130,10.45535747,143.55,143.48,3.49215747]
[1750934471036,6.9637,143.54,143.48,3.49215747]
[1750934472537,6.9637,143.54,143.52,19.93432392]
[1750934473027,45.19555747,143.55,143.53,6.9641]
[1750934473432,6.9616,143.59,143.57,6.9622]
[1750934473638,34.74,143.59,143.57,6.9622]
[1750934474140,34.74,143.59,143.54,6.50416227]
[1750934474450,8.39650632,143.6,143.55,6.50416227]
[1750934474641,3.49215747,143.6,143.55,6.50416227]
[1750934474941,38.23215747,143.6,143.56,6.50416227]
[1750934475144,38.23215747,143.6,143.58,6.9615]
[1750934477830,3.49215747,143.6,143.59,6.9612]
[1750934478449,4.90400812,143.61,143.6,6.9607]
[1750934478750,605.13215747,143.64,143.58,6.50416227]
[1750934478943,3.49215747,143.64,143.58,9.99631974]
[1750934479444,3.49215747,143.64,143.62,6.9593]
[1750934480746,10.45095747,143.64,143.62,6.9593]
[1750934481454,45.27095747,143.64,143.62,6.9593]
[1750934483853,3.49215747,143.64,143.63,6.9592]
[1750934484542,3.49215747,143.64,143.62,6.9595]
[1750934485447,3.49215747,143.64,143.6,6.50416227]
[1750934485650,3.49215747,143.66,143.6,6.50416227]
[1750934485850,3.49215747,143.66,143.61,6.50416227]
[1750934486050,3.49215747,143.66,143.63,6.9589]
[1750934486948,10.45025747,143.66,143.64,6.9586]
[1750934488260,10.45025747,143.66,143.63,6.959]
[1750934488452,6.9583,143.65,143.61,6.50416227]
[1750934489049,6.9583,143.65,143.62,6.9594]
[1750934489258,6.9593,143.63,143.61,6.50416227]
[1750934489556,3.49215747,143.62,143.6,6.9604]
[1750934490052,3.49215747,143.62,143.59,6.961]
[1750934490856,6.9605,143.61,143.59,6.961]
[1750934492664,10.45215747,143.62,143.59,6.961]
[1750934492858,3.49215747,143.6,143.57,11.15476227]
[1750934493063,3.49215747,143.6,143.57,2.373]
[1750934493264,10.45315747,143.6,143.57,2.373]
[1750934493457,3.49215747,143.6,143.57,6.9621]
[1750934494166,6.9612,143.59,143.57,6.9621]
[1750934495168,10.45305747,143.6,143.57,6.9621]
[1750934497176,6.9613,143.59,143.57,6.9621]
[1750934498076,10.45315747,143.6,143.57,6.9621]
[1750934498373,10.45315747,143.6,143.58,6.9617]
[1750934499574,6.961,143.6,143.57,6.9619]
[1750934499772,10.45315747,143.6,143.57,6.9619]
[1750934500181,3.49215747,143.6,143.56,6.50416227]
[1750934500383,34.82,143.61,143.56,6.50416227]
[1750934500777,34.82,143.61,143.6,6.9607]
[1750934501582,41.7805,143.61,143.57,6.50416227]
[1750934501880,41.7805,143.61,143.56,6.50416227]
[1750934502573,41.7805,143.61,143.59,6.9612]
[1750934503781,41.7805,143.61,143.58,6.9615]
[1750934503982,6.9612,143.59,143.56,6.50416227]
[1750934504174,3.49215747,143.58,143.56,6.50416227]
[1750934504573,10.45405747,143.58,143.54,6.50416227]
[1750934504774,3.49215747,143.58,143.55,6.9628]
[1750934505280,10.45415747,143.58,143.55,6.9628]
[1750934505581,3.49215747,143.58,143.56,6.9626]
[1750934505973,10.45405747,143.58,143.56,6.9626]
[1750934506874,3.49215747,143.58,143.54,6.50416227]
[1750934507580,3.49215747,143.58,143.55,6.50416227]
[1750934507978,3.49215747,143.58,143.54,6.50416227]
[1750934508280,10.45385747,143.58,143.56,6.9624]
[1750934509885,6.9622,143.57,143.55,6.9629]
[1750934512276,6.9631,143.55,143.54,6.50416227]
[1750934512589,3.49215747,143.56,143.51,6.50416227]
[1750934512782,3.49215747,143.54,143.51,6.50416227]
[1750934513881,3.49215747,143.54,143.52,6.9643]
[1750934514080,3.49215747,143.54,143.51,6.50416227]
[1750934514277,10.45555747,143.55,143.51,6.50416227]
[1750934514478,3.49215747,143.55,143.53,6.9638]
[1750934516788,10.45555747,143.55,143.52,6.9644]
[1750934517586,3.49215747,143.55,143.51,13.46906227]
[1750934518484,3.49215747,143.53,143.51,6.50416227]
[1750934518688,38.39215747,143.53,143.5,6.50416227]
[1750934518881,38.39215747,143.53,143.49,6.50416227]
[1750934519290,6.9651,143.52,143.49,13.46986227]
[1750934520090,10.45725747,143.52,143.49,13.46986227]
[1750934521291,6.9651,143.51,143.49,13.46986227]
[1750934521683,3.49215747,143.52,143.49,13.46986227]
[1750934521982,10.45695747,143.52,143.49,13.46986227]
[1750934522589,10.45695747,143.52,143.5,6.9655]
[1750934523092,10.45695747,143.52,143.49,6.50416227]
[1750934523286,10.45695747,143.52,143.49,13.46996227]
[1750934523688,10.45695747,143.52,143.5,6.9655]
[1750934523887,3.49215747,143.52,143.5,6.9655]
[1750934524681,41.8643,143.53,143.5,6.9655]
[1750934524880,45.35645747,143.53,143.5,6.9655]
[1750934525184,45.35645747,143.53,143.51,6.965]
[1750934526193,10.45645747,143.53,143.51,6.965]
[1750934526395,45.37645747,143.53,143.51,6.965]
[1750934526994,38.41215747,143.53,143.52,6.9646]
[1750934527193,38.41215747,143.55,143.49,6.50416227]
[1750934527393,38.41215747,143.55,143.5,6.50416227]
[1750934527595,6.9636,143.54,143.52,6.9642]
[1750934527889,38.41215747,143.55,143.5,6.50416227]
[1750934528286,38.41215747,143.55,143.48,7.1872]
[1750934528691,45.37555747,143.55,143.53,6.9641]
[1750934528995,41.8834,143.55,143.53,6.9641]
[1750934529190,45.37555747,143.55,143.53,6.9641]
[1750934529793,38.41215747,143.55,143.54,6.9636]
[1750934530291,3.49215747,143.55,143.54,6.9636]